[Event "Late-Titled-Tuesday-Blitz-February-06-2024"]
[Site "Chess.com"]
[Date "2024.02.06"]
[Round "2"]
[White "valeriocarnicelli"]
[Black "alexrustemov"]
[Result "0-1"]
[WhiteElo "2531"]
[BlackElo "2791"]
[TimeControl "180+1"]
[EndTime "14:19:47 PST"]
[Termination "alexrustemov won by resignation"]

1. e4 {[%clk 0:03:00.9]} 1... e6 {[%clk 0:02:59.8]} 2. d4 {[%clk 0:03:00.6]}
2... d5 {[%clk 0:03:00.1]} 3. Nc3 {[%clk 0:03:01.2]} 3... dxe4 {[%clk
0:02:59.7]} 4. Nxe4 {[%clk 0:03:01.2]} 4... Bd7 {[%clk 0:03:00]} 5. Nf3 {[%clk
0:02:59.4]} 5... Bc6 {[%clk 0:03:00.3]} 6. Bd3 {[%clk 0:02:59.6]} 6... Nd7
{[%clk 0:03:00.5]} 7. c4 {[%clk 0:02:58.7]} 7... Bb4+ {[%clk 0:02:52.3]} 8. Nc3
{[%clk 0:02:54.8]} 8... Ngf6 {[%clk 0:02:31.4]} 9. O-O {[%clk 0:02:54.6]} 9...
O-O {[%clk 0:02:30.3]} 10. Re1 {[%clk 0:02:50.4]} 10... Bxf3 {[%clk 0:02:25.9]}
11. Qxf3 {[%clk 0:02:50]} 11... c5 {[%clk 0:02:26.4]} 12. Qxb7 {[%clk
0:02:37.9]} 12... Rb8 {[%clk 0:02:21.4]} 13. Qxa7 {[%clk 0:02:27.3]} 13... Qc8
{[%clk 0:01:46.8]} 14. Bf4 {[%clk 0:01:13]} 14... Ra8 {[%clk 0:01:44.9]} 15. Qc7
{[%clk 0:01:13.2]} 15... cxd4 {[%clk 0:01:37.5]} 16. a3 {[%clk 0:00:55]} 16...
Ba5 {[%clk 0:01:36.7]} 17. Qxc8 {[%clk 0:00:53.2]} 17... Rfxc8 {[%clk
0:01:37.6]} 18. b4 {[%clk 0:00:50.6]} 18... dxc3 {[%clk 0:01:37.4]} 19. bxa5
{[%clk 0:00:50.6]} 19... Nc5 {[%clk 0:01:27.3]} 20. Bc2 {[%clk 0:00:43.3]} 20...
Rxa5 {[%clk 0:01:24.2]} 21. Be5 {[%clk 0:00:37.5]} 21... Na4 {[%clk 0:01:21.2]}
22. Rab1 {[%clk 0:00:21.6]} 22... h6 {[%clk 0:01:08.6]} 23. Rb4 {[%clk
0:00:16.4]} 23... Nc5 {[%clk 0:01:04]} 24. a4 {[%clk 0:00:15.3]} 24... Na6
{[%clk 0:00:47.2]} 25. Rb5 {[%clk 0:00:15.3]} 25... Rxb5 {[%clk 0:00:47.6]} 26.
axb5 {[%clk 0:00:11.5]} 26... Nb4 {[%clk 0:00:48.2]} 27. Bb3 {[%clk 0:00:11.8]}
27... c2 {[%clk 0:00:42.7]} 28. Rf1 {[%clk 0:00:03.9]} 28... Nd3 {[%clk
0:00:39.1]} 29. Bxf6 {[%clk 0:00:04.4]} 29... gxf6 {[%clk 0:00:38.9]} 30. Bxc2
{[%clk 0:00:04.3]} 30... Nb2 {[%clk 0:00:32]} 31. b6 {[%clk 0:00:03.5]} 31...
Nxc4 {[%clk 0:00:27.9]} 32. b7 {[%clk 0:00:03]} 32... Rb8 {[%clk 0:00:28.1]} 33.
Rb1 {[%clk 0:00:02.8]} 33... Nd6 {[%clk 0:00:26.3]} 34. Bd3 {[%clk 0:00:02.2]}
34... Rxb7 {[%clk 0:00:26.3]} 35. Rxb7 {[%clk 0:00:02.5]} 35... Nxb7 {[%clk
0:00:26.9]} 36. f4 {[%clk 0:00:03.2]} 36... Nd6 {[%clk 0:00:22.9]} 37. Kf2
{[%clk 0:00:03]} 37... e5 {[%clk 0:00:23.6]} 38. fxe5 {[%clk 0:00:03.3]} 38...
fxe5 {[%clk 0:00:24.5]} 39. Ke3 {[%clk 0:00:03.9]} 39... f5 {[%clk 0:00:24]} 40.
Bb1 {[%clk 0:00:04.5]} 40... Kg7 {[%clk 0:00:24.4]} 41. g3 {[%clk 0:00:05.1]}
41... Kf6 {[%clk 0:00:24.7]} 42. Bc2 {[%clk 0:00:05.8]} 42... Kg5 {[%clk
0:00:25]} 43. Kf3 {[%clk 0:00:06.1]} 43... Nb5 {[%clk 0:00:21.8]} 44. h4+ {[%clk
0:00:05.8]} 44... Kf6 {[%clk 0:00:20.7]} 45. Bb1 {[%clk 0:00:05.4]} 45... Nd4+
{[%clk 0:00:20.7]} 46. Ke3 {[%clk 0:00:05.5]} 46... Ne6 {[%clk 0:00:18.3]} 47.
Bc2 {[%clk 0:00:05.3]} 47... e4 {[%clk 0:00:18.3]} 48. Bb1 {[%clk 0:00:04.8]}
48... Ke5 {[%clk 0:00:18.4]} 49. Ba2 {[%clk 0:00:05.1]} 49... Nc7 {[%clk
0:00:16.4]} 50. Bb3 {[%clk 0:00:03]} 50... Nd5+ {[%clk 0:00:16.7]} 51. Ke2
{[%clk 0:00:02.7]} 51... f4 {[%clk 0:00:15.7]} 52. gxf4+ {[%clk 0:00:01.7]}
52... Nxf4+ {[%clk 0:00:15.7]} 53. Kf2 {[%clk 0:00:02.5]} 53... Ng6 {[%clk
0:00:13.8]} 54. Kg3 {[%clk 0:00:02.7]} 54... e3 {[%clk 0:00:13.3]} 55. Bc2
{[%clk 0:00:03.2]} 55... Nf4 {[%clk 0:00:11]} 56. Kf3 {[%clk 0:00:03.7]} 56...
e2 {[%clk 0:00:06.1]} 57. Kf2 {[%clk 0:00:03.5]} 57... Kd4 {[%clk 0:00:06.4]}
58. Ba4 {[%clk 0:00:02.4]} 58... Kc3 {[%clk 0:00:06.8]} 59. Bb5 {[%clk 0:00:02]}
59... Kd2 {[%clk 0:00:07.1]} 60. Bxe2 {[%clk 0:00:02.1]} 60... Nxe2 {[%clk
0:00:07.4]} 61. Kf3 {[%clk 0:00:01.6]} 61... h5 {[%clk 0:00:05]} 62. Ke4 {[%clk
0:00:01.2]} 62... Ke1 {[%clk 0:00:03.6]} 63. Kf5 {[%clk 0:00:01.5]} 63... Ng3+
{[%clk 0:00:03.8]} 64. Kf4 {[%clk 0:00:01.7]} 64... Kf2 {[%clk 0:00:04.7]} 65.
Kg5 {[%clk 0:00:02.2]} 65... Kf3 {[%clk 0:00:04.6]} 66. Kf6 {[%clk 0:00:02.4]}
66... Kg4 {[%clk 0:00:05.1]} 67. Ke5 {[%clk 0:00:02.3]} 67... Kxh4 {[%clk
0:00:05.8]} 68. Kf4 {[%clk 0:00:03.2]} 68... Kh3 {[%clk 0:00:05.9]} 69. Kf3
{[%clk 0:00:04.1]} 69... h4 {[%clk 0:00:06.1]} 70. Kf2 {[%clk 0:00:05]} 70...
Kg4 {[%clk 0:00:06.7]} 71. Kg1 {[%clk 0:00:05.8]} 71... h3 {[%clk 0:00:07.5]}
72. Kh2 {[%clk 0:00:06.4]} 72... Nf5 {[%clk 0:00:07.8]} 73. Kg1 {[%clk
0:00:07.2]} 73... Nh4 {[%clk 0:00:08.3]} 74. Kh1 {[%clk 0:00:08.1]} 74... Kg3
{[%clk 0:00:08.3]} 75. Kg1 {[%clk 0:00:08.7]} 75... Nf5 {[%clk 0:00:08.6]} 76.
Kh1 {[%clk 0:00:09.6]} 76... Ne3 {[%clk 0:00:08.3]} 77. Kg1 {[%clk 0:00:10.5]}
77... Ng4 {[%clk 0:00:08.6]} 78. Kh1 {[%clk 0:00:11.4]} 78... Nf2+ {[%clk
0:00:09.1]} 79. Kg1 {[%clk 0:00:12.3]} 79... h2+ {[%clk 0:00:09.8]} 80. Kf1
{[%clk 0:00:13.2]} 80... h1=Q+ {[%clk 0:00:10.4]} 81. Ke2 {[%clk 0:00:14.1]}
81... Qd1+ {[%clk 0:00:10.8]} 0-1

[Event "Late-Titled-Tuesday-Blitz-February-06-2024"]
[Site "Chess.com"]
[Date "2024.02.06"]
[Round "2"]
[White "nikitadovbnya2008"]
[Black "GP9isback23"]
[Result "1-0"]
[WhiteElo "2357"]
[BlackElo "2611"]
[TimeControl "180+1"]
[EndTime "14:19:49 PST"]
[Termination "nikitadovbnya2008 won by checkmate"]

1. d4 {[%clk 0:03:00.9]} 1... Nf6 {[%clk 0:02:59.6]} 2. c4 {[%clk 0:02:59.7]}
2... e6 {[%clk 0:02:59.8]} 3. Nc3 {[%clk 0:03:00.2]} 3... Bb4 {[%clk 0:02:59.5]}
4. e3 {[%clk 0:03:00.8]} 4... O-O {[%clk 0:02:59]} 5. Bd2 {[%clk 0:03:01.3]}
5... d5 {[%clk 0:02:59.1]} 6. Nf3 {[%clk 0:03:00]} 6... b6 {[%clk 0:02:53.4]} 7.
cxd5 {[%clk 0:02:59.9]} 7... exd5 {[%clk 0:02:53.3]} 8. Rc1 {[%clk 0:03:00.4]}
8... Bb7 {[%clk 0:02:52.6]} 9. Bd3 {[%clk 0:03:00.6]} 9... a6 {[%clk 0:02:51.2]}
10. Ne5 {[%clk 0:03:00.6]} 10... Bd6 {[%clk 0:02:50.9]} 11. O-O {[%clk
0:02:59.7]} 11... Nbd7 {[%clk 0:02:50.7]} 12. f4 {[%clk 0:02:59]} 12... Ne4
{[%clk 0:02:45.8]} 13. Ne2 {[%clk 0:02:44.5]} 13... f6 {[%clk 0:02:41.6]} 14.
Nxd7 {[%clk 0:02:34.8]} 14... Qxd7 {[%clk 0:02:42.5]} 15. Ng3 {[%clk 0:02:33.5]}
15... Nxd2 {[%clk 0:02:42.3]} 16. Qxd2 {[%clk 0:02:28.7]} 16... Rfe8 {[%clk
0:02:41.8]} 17. Nf5 {[%clk 0:02:21.8]} 17... Bf8 {[%clk 0:02:36.1]} 18. Qc2
{[%clk 0:02:19.1]} 18... c6 {[%clk 0:02:25.9]} 19. Rf3 {[%clk 0:02:18.2]} 19...
g6 {[%clk 0:02:24.2]} 20. Rg3 {[%clk 0:02:09.8]} 20... Kh8 {[%clk 0:02:22.9]}
21. Nh4 {[%clk 0:02:09.5]} 21... f5 {[%clk 0:02:19.6]} 22. Rh3 {[%clk
0:02:02.6]} 22... Kg8 {[%clk 0:02:18.1]} 23. Rg3 {[%clk 0:01:53.2]} 23... Kh8
{[%clk 0:02:17.4]} 24. Rh3 {[%clk 0:01:53.1]} 24... Kg8 {[%clk 0:02:17.3]} 25.
Nxf5 {[%clk 0:01:33.8]} 25... c5 {[%clk 0:01:38.5]} 26. Nh6+ {[%clk 0:00:55.6]}
26... Kg7 {[%clk 0:01:31.2]} 27. f5 {[%clk 0:00:52.8]} 27... c4 {[%clk
0:01:18.2]} 28. f6+ {[%clk 0:00:49.9]} 28... Kxf6 {[%clk 0:01:09.1]} 29. Ng8+
{[%clk 0:00:49.9]} 29... Kg7 {[%clk 0:01:07.5]} 30. Rxh7+ {[%clk 0:00:48.6]}
30... Kxh7 {[%clk 0:01:05]} 31. Nf6+ {[%clk 0:00:49.1]} 31... Kg7 {[%clk
0:01:05.4]} 32. Nxd7 {[%clk 0:00:48.4]} 32... cxd3 {[%clk 0:01:02.4]} 33. Qxd3
{[%clk 0:00:46.8]} 33... Bd6 {[%clk 0:00:59.5]} 34. Ne5 {[%clk 0:00:43.4]} 34...
Re6 {[%clk 0:00:57.6]} 35. Qb3 {[%clk 0:00:33.5]} 35... b5 {[%clk 0:00:55.8]}
36. Nd7 {[%clk 0:00:29.1]} 36... Rae8 {[%clk 0:00:53.2]} 37. Rc3 {[%clk
0:00:28.7]} 37... R6e7 {[%clk 0:00:52.5]} 38. Nc5 {[%clk 0:00:28.3]} 38... Bc8
{[%clk 0:00:52.7]} 39. Qxd5 {[%clk 0:00:26.7]} 39... Rd8 {[%clk 0:00:42.1]} 40.
Qg5 {[%clk 0:00:19.8]} 40... Rde8 {[%clk 0:00:36.8]} 41. e4 {[%clk 0:00:14.2]}
41... Rf7 {[%clk 0:00:31]} 42. e5 {[%clk 0:00:13.7]} 42... Ref8 {[%clk
0:00:31.2]} 43. h3 {[%clk 0:00:12.8]} 43... Be7 {[%clk 0:00:30.5]} 44. Qg3
{[%clk 0:00:11.3]} 44... Rf1+ {[%clk 0:00:28.7]} 45. Kh2 {[%clk 0:00:11.8]}
45... R1f4 {[%clk 0:00:26.8]} 46. d5 {[%clk 0:00:11.5]} 46... Bh4 {[%clk
0:00:26.1]} 47. Qd3 {[%clk 0:00:10.7]} 47... Bf5 {[%clk 0:00:24.9]} 48. Qe3
{[%clk 0:00:09.5]} 48... Bc8 {[%clk 0:00:19]} 49. Ne6+ {[%clk 0:00:09.5]} 49...
Bxe6 {[%clk 0:00:17.9]} 50. dxe6 {[%clk 0:00:10.4]} 50... Bf2 {[%clk 0:00:16.7]}
51. Rc7+ {[%clk 0:00:10.7]} 51... Kg8 {[%clk 0:00:15.3]} 52. Qe2 {[%clk
0:00:08.4]} 52... Bb6 {[%clk 0:00:11.6]} 53. Rd7 {[%clk 0:00:07.3]} 53... Rf1
{[%clk 0:00:07.4]} 54. Qe4 {[%clk 0:00:07.1]} 54... Bg1+ {[%clk 0:00:07.3]} 55.
Kg3 {[%clk 0:00:07.2]} 55... R1f5 {[%clk 0:00:05.4]} 56. Qg4 {[%clk 0:00:06]}
56... Bf2+ {[%clk 0:00:02.4]} 57. Kh2 {[%clk 0:00:05.7]} 57... g5 {[%clk
0:00:02.7]} 58. e7 {[%clk 0:00:05.4]} 58... Re8 {[%clk 0:00:02.9]} 59. Qxf5
{[%clk 0:00:05.7]} 59... Rxe7 {[%clk 0:00:03.2]} 60. Qg6+ {[%clk 0:00:06]} 60...
Kf8 {[%clk 0:00:03.3]} 61. Rxe7 {[%clk 0:00:05.6]} 61... Kxe7 {[%clk 0:00:04.2]}
62. Qf6+ {[%clk 0:00:06.2]} 62... Kd7 {[%clk 0:00:04.7]} 63. e6+ {[%clk
0:00:06.4]} 63... Kc7 {[%clk 0:00:05.6]} 64. Qf7+ {[%clk 0:00:07.3]} 64... Kb6
{[%clk 0:00:06.3]} 65. e7 {[%clk 0:00:07.9]} 65... Ka5 {[%clk 0:00:07.2]} 66.
e8=Q {[%clk 0:00:08.8]} 66... Bd4 {[%clk 0:00:07.8]} 67. Qe2 {[%clk 0:00:08.9]}
67... Be5+ {[%clk 0:00:08.7]} 68. g3 {[%clk 0:00:07.4]} 68... g4 {[%clk
0:00:09.6]} 69. Kg2 {[%clk 0:00:07.7]} 69... Bxg3 {[%clk 0:00:10.4]} 70. Kxg3
{[%clk 0:00:07.6]} 70... gxh3 {[%clk 0:00:11.3]} 71. Kg4 {[%clk 0:00:08.5]}
71... Kb4 {[%clk 0:00:11.6]} 72. Qb3+ {[%clk 0:00:08.9]} 72... Ka5 {[%clk
0:00:12.5]} 73. Qd2+ {[%clk 0:00:09.5]} 73... Kb6 {[%clk 0:00:13.4]} 74. Qd8+
{[%clk 0:00:10]} 74... Kb7 {[%clk 0:00:13.3]} 75. Qf3+ {[%clk 0:00:09.9]} 75...
Ka7 {[%clk 0:00:12.9]} 76. Qfa8# {[%clk 0:00:08.2]} 1-0

[Event "Late-Titled-Tuesday-Blitz-February-06-2024"]
[Site "Chess.com"]
[Date "2024.02.06"]
[Round "2"]
[White "mitrabhaa"]
[Black "yobdc"]
[Result "1-0"]
[WhiteElo "2943"]
[BlackElo "2606"]
[TimeControl "180+1"]
[EndTime "14:20:04 PST"]
[Termination "mitrabhaa won by checkmate"]

1. d4 {[%clk 0:02:49.2]} 1... Nf6 {[%clk 0:02:59.7]} 2. Nf3 {[%clk 0:02:43.3]}
2... g6 {[%clk 0:02:59.9]} 3. g3 {[%clk 0:02:43.4]} 3... Bg7 {[%clk 0:03:00.3]}
4. c4 {[%clk 0:02:44.3]} 4... O-O {[%clk 0:03:00.1]} 5. Bg2 {[%clk 0:02:45.2]}
5... c5 {[%clk 0:03:00.5]} 6. O-O {[%clk 0:02:46.1]} 6... cxd4 {[%clk
0:02:57.3]} 7. Nxd4 {[%clk 0:02:47]} 7... Nc6 {[%clk 0:02:57.8]} 8. Nc3 {[%clk
0:02:47.5]} 8... Nxd4 {[%clk 0:02:53.5]} 9. Qxd4 {[%clk 0:02:46.1]} 9... d6
{[%clk 0:02:53.9]} 10. b3 {[%clk 0:02:45.9]} 10... Be6 {[%clk 0:02:52]} 11. Bb2
{[%clk 0:02:45]} 11... Nd7 {[%clk 0:02:43]} 12. Qd2 {[%clk 0:02:44.2]} 12... Rb8
{[%clk 0:02:40.1]} 13. Rfd1 {[%clk 0:02:40.4]} 13... a6 {[%clk 0:02:39.5]} 14.
h4 {[%clk 0:02:39.2]} 14... b5 {[%clk 0:02:25.4]} 15. cxb5 {[%clk 0:02:37.5]}
15... axb5 {[%clk 0:02:25.7]} 16. h5 {[%clk 0:02:37.9]} 16... Ne5 {[%clk
0:02:15.6]} 17. Nd5 {[%clk 0:02:25.6]} 17... Bxd5 {[%clk 0:01:58.6]} 18. Bxd5
{[%clk 0:02:22.5]} 18... Ng4 {[%clk 0:01:51.6]} 19. Bxg7 {[%clk 0:02:16.6]}
19... Kxg7 {[%clk 0:01:52.5]} 20. Qb2+ {[%clk 0:02:15.9]} 20... Nf6 {[%clk
0:01:49.1]} 21. Bf3 {[%clk 0:02:16]} 21... b4 {[%clk 0:01:47.3]} 22. Kg2 {[%clk
0:02:14.9]} 22... Qa5 {[%clk 0:01:43.9]} 23. Rh1 {[%clk 0:02:13.5]} 23... Qe5
{[%clk 0:01:43.8]} 24. Qd2 {[%clk 0:02:12.7]} 24... g5 {[%clk 0:01:35.9]} 25.
h6+ {[%clk 0:02:06.6]} 25... Kh8 {[%clk 0:01:35.1]} 26. Rac1 {[%clk 0:02:05.8]}
26... g4 {[%clk 0:01:08]} 27. Bc6 {[%clk 0:02:04.3]} 27... Rfc8 {[%clk
0:01:04.3]} 28. Qd3 {[%clk 0:01:47.8]} 28... Rc7 {[%clk 0:00:55.5]} 29. Rc2
{[%clk 0:01:43.3]} 29... Rbc8 {[%clk 0:00:54]} 30. Rhc1 {[%clk 0:01:43.5]} 30...
Ng8 {[%clk 0:00:32.6]} 31. Ba4 {[%clk 0:01:14.1]} 31... Rxc2 {[%clk 0:00:31.8]}
32. Rxc2 {[%clk 0:01:15]} 32... Rxc2 {[%clk 0:00:31.5]} 33. Qxc2 {[%clk
0:01:15.9]} 33... Nxh6 {[%clk 0:00:30.3]} 34. Qd2 {[%clk 0:01:16.1]} 34... Nf5
{[%clk 0:00:20.6]} 35. Bd7 {[%clk 0:01:05.5]} 35... e6 {[%clk 0:00:20]} 36. Be8
{[%clk 0:00:34.4]} 36... Kg7 {[%clk 0:00:16.4]} 37. Kg1 {[%clk 0:00:26.5]} 37...
Qe4 {[%clk 0:00:14.4]} 38. Bb5 {[%clk 0:00:24.5]} 38... h6 {[%clk 0:00:13.4]}
39. Bd3 {[%clk 0:00:23.8]} 39... Qd4 {[%clk 0:00:12.9]} 40. Qc2 {[%clk
0:00:23.4]} 40... Ne7 {[%clk 0:00:11.8]} 41. Qc7 {[%clk 0:00:20.5]} 41... Ng6
{[%clk 0:00:09.3]} 42. Qb7 {[%clk 0:00:17.2]} 42... Ne5 {[%clk 0:00:08.3]} 43.
Bc4 {[%clk 0:00:17.6]} 43... Nxc4 {[%clk 0:00:07.9]} 44. bxc4 {[%clk 0:00:15.3]}
44... Qxc4 {[%clk 0:00:08.4]} 45. e3 {[%clk 0:00:15]} 45... Qxa2 {[%clk
0:00:05.9]} 46. Qxb4 {[%clk 0:00:14.8]} 46... h5 {[%clk 0:00:06.5]} 47. Qxd6
{[%clk 0:00:14.7]} 47... Qd5 {[%clk 0:00:06.6]} 48. Qe7 {[%clk 0:00:13.5]} 48...
Qf5 {[%clk 0:00:06.7]} 49. Qd8 {[%clk 0:00:13.7]} 49... Qf6 {[%clk 0:00:07.1]}
50. Qd1 {[%clk 0:00:13.1]} 50... Qe5 {[%clk 0:00:07.1]} 51. Qa4 {[%clk
0:00:12.5]} 51... Qf5 {[%clk 0:00:07.4]} 52. Qd4+ {[%clk 0:00:12.6]} 52... Qf6
{[%clk 0:00:07.4]} 53. Qc5 {[%clk 0:00:12.4]} 53... h4 {[%clk 0:00:07.5]} 54.
gxh4 {[%clk 0:00:12.4]} 54... Qxh4 {[%clk 0:00:08.4]} 55. Qd4+ {[%clk
0:00:13.1]} 55... Kh7 {[%clk 0:00:07.6]} 56. Qe4+ {[%clk 0:00:13.4]} 56... Kg8
{[%clk 0:00:07.6]} 57. Qf4 {[%clk 0:00:13.6]} 57... Qh5 {[%clk 0:00:07.6]} 58.
Kg2 {[%clk 0:00:13.5]} 58... Kg7 {[%clk 0:00:07.9]} 59. Qd4+ {[%clk 0:00:13.4]}
59... Kg6 {[%clk 0:00:07.3]} 60. Qd8 {[%clk 0:00:13]} 60... Qd5+ {[%clk
0:00:07.5]} 61. Qxd5 {[%clk 0:00:11.6]} 61... exd5 {[%clk 0:00:08.4]} 62. Kg3
{[%clk 0:00:10]} 62... Kg5 {[%clk 0:00:09]} 63. Kh2 {[%clk 0:00:09.9]} 63... f5
{[%clk 0:00:09]} 64. Kg2 {[%clk 0:00:09.9]} 64... Kf6 {[%clk 0:00:09.1]} 65. Kg3
{[%clk 0:00:09.8]} 65... Ke5 {[%clk 0:00:09.7]} 66. Kh4 {[%clk 0:00:10.5]} 66...
Ke4 {[%clk 0:00:09.9]} 67. Kg3 {[%clk 0:00:10.5]} 67... d4 {[%clk 0:00:10.4]}
68. exd4 {[%clk 0:00:10.5]} 68... Kxd4 {[%clk 0:00:03.2]} 69. Kf4 {[%clk
0:00:11.1]} 69... Kd5 {[%clk 0:00:02.7]} 70. Kxf5 {[%clk 0:00:11.6]} 70... Kd6
{[%clk 0:00:01.2]} 71. Kxg4 {[%clk 0:00:12]} 71... Ke7 {[%clk 0:00:01.4]} 72.
Kg5 {[%clk 0:00:12.2]} 72... Kf7 {[%clk 0:00:01.7]} 73. Kf5 {[%clk 0:00:12.8]}
73... Kf8 {[%clk 0:00:01.8]} 74. Kf6 {[%clk 0:00:13.1]} 74... Kg8 {[%clk
0:00:02.2]} 75. f4 {[%clk 0:00:12.1]} 75... Kf8 {[%clk 0:00:02.7]} 76. f5 {[%clk
0:00:12.3]} 76... Kg8 {[%clk 0:00:03.6]} 77. Ke7 {[%clk 0:00:12.6]} 77... Kg7
{[%clk 0:00:03.8]} 78. f6+ {[%clk 0:00:13.3]} 78... Kg8 {[%clk 0:00:04.7]} 79.
f7+ {[%clk 0:00:13.9]} 79... Kh7 {[%clk 0:00:05.3]} 80. f8=Q {[%clk 0:00:14.4]}
80... Kg6 {[%clk 0:00:05.9]} 81. Qf7+ {[%clk 0:00:14]} 81... Kh6 {[%clk
0:00:05.7]} 82. Qg8 {[%clk 0:00:14.2]} 82... Kh5 {[%clk 0:00:05.8]} 83. Kf6
{[%clk 0:00:15.1]} 83... Kh4 {[%clk 0:00:05.6]} 84. Kf5 {[%clk 0:00:16]} 84...
Kh3 {[%clk 0:00:06.3]} 85. Kf4 {[%clk 0:00:16.6]} 85... Kh2 {[%clk 0:00:07.2]}
86. Kf3 {[%clk 0:00:17.1]} 86... Kh1 {[%clk 0:00:06.1]} 87. Qg2# {[%clk
0:00:17.5]} 1-0

[Event "Late-Titled-Tuesday-Blitz-February-06-2024"]
[Site "Chess.com"]
[Date "2024.02.06"]
[Round "2"]
[White "MolecularChemist"]
[Black "Fh2411"]
[Result "1/2-1/2"]
[WhiteElo "2951"]
[BlackElo "2617"]
[TimeControl "180+1"]
[EndTime "14:20:17 PST"]
[Termination "Game drawn by repetition"]

1. Nf3 {[%clk 0:03:00.9]} 1... d5 {[%clk 0:02:56.3]} 2. e3 {[%clk 0:03:01]} 2...
c6 {[%clk 0:02:54.7]} 3. c4 {[%clk 0:03:00.5]} 3... Nf6 {[%clk 0:02:54.3]} 4.
Nc3 {[%clk 0:03:01.1]} 4... a6 {[%clk 0:02:53.9]} 5. b3 {[%clk 0:03:01.5]} 5...
Bg4 {[%clk 0:02:53.2]} 6. Bb2 {[%clk 0:03:01.7]} 6... e6 {[%clk 0:02:53.4]} 7.
Be2 {[%clk 0:03:00]} 7... Nbd7 {[%clk 0:02:53.6]} 8. O-O {[%clk 0:03:00.6]} 8...
Bd6 {[%clk 0:02:53.7]} 9. d4 {[%clk 0:03:01.1]} 9... Qb8 {[%clk 0:02:51.2]} 10.
h3 {[%clk 0:03:01.5]} 10... Bh5 {[%clk 0:02:50]} 11. Rc1 {[%clk 0:03:01]} 11...
O-O {[%clk 0:02:49.4]} 12. Qc2 {[%clk 0:02:56.8]} 12... b5 {[%clk 0:02:37.5]}
13. Rfe1 {[%clk 0:02:51.5]} 13... Rc8 {[%clk 0:02:19.5]} 14. Nd2 {[%clk
0:02:34.3]} 14... Bg6 {[%clk 0:02:03.3]} 15. Bd3 {[%clk 0:02:33.8]} 15... Bxd3
{[%clk 0:01:58.8]} 16. Qxd3 {[%clk 0:02:34.7]} 16... bxc4 {[%clk 0:01:59.1]} 17.
Qc2 {[%clk 0:01:50]} 17... cxb3 {[%clk 0:01:58.1]} 18. Nxb3 {[%clk 0:01:49.2]}
18... c5 {[%clk 0:01:56.8]} 19. dxc5 {[%clk 0:01:48.8]} 19... Nxc5 {[%clk
0:01:54.2]} 20. Nxc5 {[%clk 0:01:48.6]} 20... Rxc5 {[%clk 0:01:48.7]} 21. Ba3
{[%clk 0:01:43.8]} 21... Rc4 {[%clk 0:01:47.1]} 22. Bxd6 {[%clk 0:01:38.8]}
22... Qxd6 {[%clk 0:01:48]} 23. Qd2 {[%clk 0:01:35.4]} 23... Rac8 {[%clk
0:01:42.8]} 24. Ne2 {[%clk 0:01:32]} 24... h6 {[%clk 0:01:34.1]} 25. Qb2 {[%clk
0:01:24.4]} 25... Qd7 {[%clk 0:01:19.8]} 26. Nd4 {[%clk 0:01:13.7]} 26... Ne4
{[%clk 0:01:15.8]} 27. Rxc4 {[%clk 0:01:05.5]} 27... dxc4 {[%clk 0:01:12.3]} 28.
Qc2 {[%clk 0:01:01.7]} 28... f5 {[%clk 0:01:02.4]} 29. Rb1 {[%clk 0:00:57.8]}
29... e5 {[%clk 0:00:45.2]} 30. Nf3 {[%clk 0:00:54.3]} 30... Qe6 {[%clk
0:00:40.8]} 31. Rb7 {[%clk 0:00:42.2]} 31... c3 {[%clk 0:00:32.6]} 32. a3 {[%clk
0:00:26]} 32... Qd5 {[%clk 0:00:28.6]} 33. Re7 {[%clk 0:00:22.8]} 33... Rd8
{[%clk 0:00:26.3]} 34. Kh2 {[%clk 0:00:18.8]} 34... Nd2 {[%clk 0:00:12.5]} 35.
Qxf5 {[%clk 0:00:13.2]} 35... Nxf3+ {[%clk 0:00:11.4]} 36. gxf3 {[%clk
0:00:14.1]} 36... e4 {[%clk 0:00:07.5]} 37. Re5 {[%clk 0:00:07.1]} 37... Qd6
{[%clk 0:00:02.3]} 38. Qxe4 {[%clk 0:00:04.4]} 38... Re8 {[%clk 0:00:02.7]} 39.
f4 {[%clk 0:00:03.3]} 39... Rxe5 {[%clk 0:00:03.1]} 40. fxe5 {[%clk 0:00:04.2]}
40... Qd2 {[%clk 0:00:03.8]} 41. Qc4+ {[%clk 0:00:02.6]} 41... Kh7 {[%clk
0:00:03.8]} 42. Qe4+ {[%clk 0:00:02.9]} 42... Kg8 {[%clk 0:00:03.2]} 43. Qc4+
{[%clk 0:00:03.5]} 43... Kh8 {[%clk 0:00:03.2]} 44. Qc8+ {[%clk 0:00:03.3]}
44... Kh7 {[%clk 0:00:03.9]} 45. Qf5+ {[%clk 0:00:04]} 45... Kh8 {[%clk
0:00:04.6]} 46. Qc8+ {[%clk 0:00:04]} 46... Kh7 {[%clk 0:00:05.1]} 47. Qf5+
{[%clk 0:00:04.2]} 47... Kh8 {[%clk 0:00:05.6]} 48. e6 {[%clk 0:00:04.6]} 48...
c2 {[%clk 0:00:03.4]} 49. e7 {[%clk 0:00:04.6]} 49... Qd6+ {[%clk 0:00:03.4]}
50. Kg2 {[%clk 0:00:04.5]} 50... Qxe7 {[%clk 0:00:04]} 51. Qxc2 {[%clk
0:00:05.1]} 51... Qxa3 {[%clk 0:00:04.7]} 52. Qc8+ {[%clk 0:00:05.7]} 52... Kh7
{[%clk 0:00:05.2]} 53. Qf5+ {[%clk 0:00:06.3]} 53... Kh8 {[%clk 0:00:05.9]} 54.
e4 {[%clk 0:00:07]} 54... a5 {[%clk 0:00:05.6]} 55. Qc8+ {[%clk 0:00:07.1]}
55... Kh7 {[%clk 0:00:05.1]} 56. Qf5+ {[%clk 0:00:07.7]} 56... Kh8 {[%clk
0:00:05.6]} 57. e5 {[%clk 0:00:08.4]} 57... Qc5 {[%clk 0:00:05.8]} 58. Qe4
{[%clk 0:00:06]} 58... Qa7 {[%clk 0:00:02.6]} 59. e6 {[%clk 0:00:05.9]} 59...
Qe7 {[%clk 0:00:02.6]} 60. Qd5 {[%clk 0:00:05.2]} 60... a4 {[%clk 0:00:02]} 61.
f4 {[%clk 0:00:05.6]} 61... a3 {[%clk 0:00:02]} 62. f5 {[%clk 0:00:06]} 62...
Qg5+ {[%clk 0:00:01.6]} 63. Kf3 {[%clk 0:00:05.9]} 63... Qh5+ {[%clk 0:00:02.1]}
64. Ke4 {[%clk 0:00:05.4]} 64... Qe2+ {[%clk 0:00:02]} 65. Kf4 {[%clk
0:00:05.1]} 65... Qf2+ {[%clk 0:00:02.1]} 66. Ke5 {[%clk 0:00:05.1]} 66... Qg3+
{[%clk 0:00:02.6]} 67. Kd4 {[%clk 0:00:05.2]} 67... Qf2+ {[%clk 0:00:03.1]} 68.
Kc4 {[%clk 0:00:05.4]} 68... Qa2+ {[%clk 0:00:02.8]} 69. Kc5 {[%clk 0:00:06.1]}
69... Qxd5+ {[%clk 0:00:02.7]} 70. Kxd5 {[%clk 0:00:07]} 70... a2 {[%clk
0:00:02.8]} 71. e7 {[%clk 0:00:07.7]} 71... a1=Q {[%clk 0:00:03.7]} 72. e8=Q+
{[%clk 0:00:08.4]} 72... Kh7 {[%clk 0:00:04.2]} 73. Qg6+ {[%clk 0:00:09]} 73...
Kh8 {[%clk 0:00:04.8]} 74. h4 {[%clk 0:00:06.2]} 74... Qa4 {[%clk 0:00:04.1]}
75. h5 {[%clk 0:00:05.5]} 75... Qb5+ {[%clk 0:00:04.4]} 76. Ke4 {[%clk
0:00:05.9]} 76... Qe2+ {[%clk 0:00:04.5]} 77. Kd5 {[%clk 0:00:06.1]} 77... Qb5+
{[%clk 0:00:04.8]} 78. Ke6 {[%clk 0:00:07]} 78... Qc6+ {[%clk 0:00:05.1]} 79.
Ke7 {[%clk 0:00:07.4]} 79... Qc7+ {[%clk 0:00:05.2]} 80. Ke6 {[%clk 0:00:06.6]}
80... Qc6+ {[%clk 0:00:05.4]} 81. Ke5 {[%clk 0:00:07.3]} 81... Qc5+ {[%clk
0:00:05.1]} 82. Kf4 {[%clk 0:00:08]} 82... Qf2+ {[%clk 0:00:05.4]} 83. Ke4
{[%clk 0:00:08.1]} 83... Qe2+ {[%clk 0:00:05.6]} 84. Kd4 {[%clk 0:00:08.8]}
84... Qd2+ {[%clk 0:00:05.8]} 85. Kc5 {[%clk 0:00:09.4]} 85... Qa5+ {[%clk
0:00:05.8]} 86. Kc6 {[%clk 0:00:09.5]} 86... Qa6+ {[%clk 0:00:06.1]} 87. Kc7
{[%clk 0:00:10.2]} 87... Qa7+ {[%clk 0:00:06.5]} 88. Kd8 {[%clk 0:00:10.9]}
88... Qb8+ {[%clk 0:00:06.7]} 89. Ke7 {[%clk 0:00:11.6]} 89... Qc7+ {[%clk
0:00:07.1]} 90. Ke6 {[%clk 0:00:10.8]} 90... Qc6+ {[%clk 0:00:07.4]} 1/2-1/2